bitfinex/quotes_BTCUSD_20250330
["timestamp","ask_amount","ask_price","bid_price","bid_amount"]
[1743342358855,0.43755876,83054.0,83053.0,0.3891067]
[1743342359849,0.43755876,83054.0,83053.0,0.003]
[1743342360272,0.43755876,83054.0,83053.0,0.005]
[1743342360477,0.252885,83042.0,83037.0,0.6269627]
[1743342360810,0.012042,83038.0,83037.0,0.3861067]
[1743342361745,0.012042,83038.0,83037.0,0.3891067]
[1743342361943,0.03445619,83038.0,83037.0,0.3891067]
[1743342362518,0.03445619,83038.0,83037.0,0.003]
[1743342362725,0.11756193,83038.0,83037.0,0.003]
[1743342362922,0.28336216,83038.0,83037.0,0.003]
[1743342363240,0.28035114,83038.0,83037.0,0.003]
[1743342363442,0.012043,83034.0,83033.0,0.00080902]
[1743342363831,0.252908,83034.0,83033.0,0.00080902]
[1743342364146,0.012043,83034.0,83033.0,0.00080902]
[1743342364383,0.03445719,83034.0,83033.0,0.00080902]
[1743342364957,0.03746814,83034.0,83033.0,0.00080902]
[1743342365376,0.03746814,83034.0,83033.0,0.00380902]
[1743342365583,0.03746814,83034.0,83033.0,0.00780902]
[1743342365804,0.03445719,83034.0,83033.0,0.00780902]
[1743342365954,0.03746813,83034.0,83033.0,0.00780902]
[1743342366161,0.03445719,83034.0,83033.0,0.00780902]
[1743342368983,0.012042,83038.0,83033.0,0.00780902]
[1743342368984,0.252876,83045.0,83038.0,0.252895]
[1743342369113,0.252876,83045.0,83036.0,0.057242]
[1743342369114,0.012042,83042.0,83036.0,0.057242]
[1743342369314,0.240844,83041.0,83036.0,0.057242]
[1743342369527,0.252886,83041.0,83036.0,0.057242]
[1743342369732,0.01887344,83040.0,83036.0,0.057242]
[1743342369959,0.012042,83037.0,83036.0,0.0452]
[1743342370275,0.252898,83037.0,83036.0,0.0452]
[1743342370614,0.012043,83035.0,83034.0,0.0801]
[1743342371083,0.252908,83034.0,83033.0,0.00080902]
[1743342372057,0.012042,83039.0,83035.0,0.0766]
[1743342372261,0.012042,83039.0,83036.0,0.0493]
[1743342372467,0.012042,83037.0,83036.0,0.0493]
[1743342372687,0.252901,83036.0,83035.0,0.0766]
[1743342372894,0.012043,83034.0,83033.0,0.00080902]
[1743342373482,0.012043,83034.0,83033.0,0.00480902]
[1743342374832,0.012043,83034.0,83033.0,0.00780902]
[1743342376974,0.012043,83034.0,83033.0,0.08440902]
[1743342377618,0.012043,83034.0,83033.0,0.00780902]
[1743342378735,0.252908,83034.0,83033.0,0.00780902]
[1743342380731,0.27178281,83034.0,83033.0,0.00780902]
[1743342386467,0.252908,83034.0,83033.0,0.00780902]
[1743342388459,0.4094685,83034.0,83033.0,0.00780902]
[1743342389078,0.7094685,83034.0,83033.0,0.00780902]
[1743342389470,0.72834468,83034.0,83033.0,0.00480902]
[1743342389608,0.72834468,83034.0,83033.0,0.00080902]
[1743342389953,0.72834468,83034.0,83033.0,0.00380902]
[1743342390182,0.72834468,83034.0,83033.0,0.00180902]
[1743342392342,0.64928418,83034.0,83033.0,0.00180902]
[1743342393162,0.73730418,83034.0,83033.0,0.00180902]
[1743342396589,0.718428,83034.0,83033.0,0.00180902]
[1743342399687,0.723257,83034.0,83033.0,0.00180902]
[1743342400150,0.557737,83034.0,83033.0,0.00180902]
[1743342400387,0.723177,83034.0,83033.0,0.00180902]
[1743342400830,0.27661306,83034.0,83033.0,0.00180902]
[1743342401031,0.27178406,83034.0,83033.0,0.00180902]
[1743342403030,0.01887606,83034.0,83033.0,0.00180902]
[1743342403238,0.01887606,83034.0,83033.0,0.14635202]
[1743342403444,0.01887606,83034.0,83033.0,0.13430902]
[1743342403989,0.01887606,83034.0,83033.0,0.2811777]
[1743342404418,0.01887606,83034.0,83033.0,0.2801777]
[1743342404626,0.01887606,83034.0,83033.0,0.2831777]
[1743342405033,0.01887606,83034.0,83033.0,0.295412]
[1743342405240,0.01887606,83034.0,83033.0,0.40009214]
[1743342405641,0.012041,83048.0,83043.0,0.012041]
[1743342405819,0.252862,83049.0,83045.0,0.1325]
[1743342406024,0.0249998,83081.0,83045.0,0.1325]
[1743342406025,0.036205,83070.0,83054.0,0.01204]
[1743342406226,0.012039,83063.0,83055.0,0.0831]
[1743342406366,0.012039,83059.0,83055.0,0.0831]
[1743342406811,0.012039,83059.0,83055.0,0.0821]
[1743342407593,0.012039,83059.0,83055.0,0.0841]
[1743342407818,0.012038,83067.0,83059.0,0.252829]
[1743342408022,0.252815,83065.0,83060.0,0.12028483]
[1743342408223,0.012038,83064.0,83060.0,0.12028483]
[1743342408482,0.012038,83065.0,83060.0,0.12028483]
[1743342408703,0.01886742,83064.0,83061.0,0.240786]
[1743342408878,0.01886742,83064.0,83060.0,0.12028483]
[1743342409080,0.01886742,83064.0,83060.0,0.12075665]
[1743342409521,0.01886742,83064.0,83061.0,0.252825]
[1743342409774,0.01886742,83064.0,83061.0,0.65091862]
[1743342410433,0.012039,83062.0,83061.0,0.3861067]
[1743342410811,0.012039,83062.0,83061.0,0.3881067]
[1743342411965,0.012039,83062.0,83061.0,0.3901067]
[1743342412157,0.01886742,83064.0,83061.0,0.6308927]
[1743342412358,0.01886742,83064.0,83063.0,0.012039]
[1743342412566,0.01886742,83064.0,83063.0,0.25282]
[1743342412787,0.01886742,83064.0,83063.0,0.38764568]
[1743342413993,0.01886742,83064.0,83063.0,0.39164568]
[1743342414954,0.01886742,83064.0,83063.0,0.46814568]
[1743342416553,0.01886742,83064.0,83063.0,0.85425238]
[1743342416757,0.252775,83078.0,83071.0,0.252792]
[1743342417150,0.0001687,83079.0,83073.0,0.240752]
[1743342417666,0.0122047,83079.0,83074.0,0.012037]
[1743342418122,0.0122047,83079.0,83071.0,0.012037]
[1743342418123,0.012037,83076.0,83071.0,0.252794]
[1743342418553,0.25278,83076.0,83071.0,0.252794]
[1743342419016,0.0122047,83079.0,83073.0,0.252786]
[1743342419237,0.252773,83078.0,83071.0,0.252793]
[1743342419470,0.252782,83076.0,83073.0,0.001]
[1743342420110,0.03090185,83077.0,83072.0,0.012037]
[1743342420348,0.03090185,83077.0,83073.0,0.002]
[1743342420587,0.03090185,83077.0,83072.0,0.012037]
[1743342420990,0.012037,83076.0,83073.0,0.006]
[1743342421208,0.012037,83075.0,83073.0,0.003]
[1743342421492,0.012037,83076.0,83073.0,0.003]
[1743342421703,0.01886485,83077.0,83073.0,0.24375]
[1743342422094,0.01886485,83077.0,83075.0,0.0758]
[1743342422725,0.01886485,83077.0,83075.0,0.087837]
[1743342422926,0.01886485,83077.0,83076.0,0.14686268]
[1743342423184,0.01886485,83077.0,83076.0,0.19306268]
[1743342424211,0.01886485,83077.0,83076.0,0.20220381]
[1743342424212,0.01903355,83077.0,83076.0,0.20220381]
[1743342424420,0.01903355,83077.0,83076.0,0.20520381]
[1743342425854,0.01903355,83077.0,83076.0,0.44594681]
[1743342426271,0.01903355,83077.0,83076.0,0.44894681]
[1743342427265,0.0001687,83077.0,83076.0,1.21085351]
[1743342428884,0.0001687,83077.0,83076.0,1.20785351]
[1743342429120,0.0001687,83077.0,83076.0,1.20485351]
[1743342429324,0.0001687,83077.0,83076.0,1.20985351]
[1743342429863,0.0001687,83077.0,83076.0,1.21585351]
[1743342430076,0.0001687,83077.0,83076.0,1.21085351]
[1743342430493,0.0001687,83077.0,83076.0,1.21685351]
[1743342432591,0.0001687,83077.0,83076.0,1.25812789]
[1743342434400,0.0001687,83079.0,83076.0,1.25812789]
[1743342434401,0.0001687,83079.0,83078.0,0.95325185]
[1743342434608,0.0089202,83095.0,83094.0,0.252725]
[1743342434821,0.0089202,83095.0,83094.0,1.18434783]
[1743342435123,0.0089202,83095.0,83094.0,1.31917351]
[1743342435903,0.0089202,83095.0,83094.0,1.31964533]
[1743342436756,0.0089202,83095.0,83094.0,1.32964533]
[1743342437955,0.0089202,83095.0,83094.0,1.35332814]
[1743342438556,0.0089202,83095.0,83094.0,1.34832814]
[1743342438960,0.0089202,83095.0,83094.0,1.36622298]
[1743342439224,0.0089202,83095.0,83094.0,1.24593815]
[1743342439424,0.0089202,83095.0,83094.0,0.94093815]
[1743342439623,0.0089202,83095.0,83094.0,0.77706846]
[1743342439849,0.0089202,83095.0,83094.0,0.78910246]
[1743342440065,0.0089202,83095.0,83094.0,0.89165723]
[1743342440264,0.0089202,83095.0,83094.0,1.01194206]
[1743342440439,0.0089202,83095.0,83094.0,0.89765723]
[1743342441063,0.0089202,83095.0,83094.0,0.89165723]
[1743342441294,0.0089202,83095.0,83094.0,0.88565723]
[1743342442675,0.0089202,83095.0,83094.0,0.89165723]
[1743342443429,0.0089202,83095.0,83094.0,0.89765723]
[1743342444205,0.0089202,83095.0,83094.0,1.01794206]
[1743342447567,0.0089202,83095.0,83094.0,1.31794206]
[1743342448154,0.240631,83115.0,83094.0,1.31794206]
[1743342448155,0.252639,83123.0,83117.0,0.012031]
[1743342448393,0.012029,83126.0,83117.0,0.3890488]
[1743342448607,0.03203,83124.0,83117.0,0.3890488]
[1743342448781,0.03203,83124.0,83117.0,0.48631558]
[1743342449226,0.01203,83123.0,83117.0,0.48631558]
[1743342449377,0.02,83124.0,83117.0,0.48631558]
[1743342449802,0.01203,83121.0,83117.0,0.47528458]
[1743342450000,0.272635,83124.0,83117.0,0.59556941]
[1743342450205,0.272635,83124.0,83117.0,0.62214126]
[1743342450206,0.02,83124.0,83117.0,0.62214126]
[1743342450534,0.02,83124.0,83117.0,0.63208416]
[1743342450680,0.02,83124.0,83117.0,0.63408416]
[1743342450896,0.260605,83124.0,83117.0,0.63808416]
[1743342451102,0.01899468,83118.0,83117.0,0.63808416]
[1743342451306,0.01899468,83118.0,83117.0,0.66230905]
[1743342454967,0.27164668,83118.0,83117.0,0.51424553]
[1743342455167,0.27164668,83118.0,83117.0,0.3939607]
[1743342456389,0.03102568,83118.0,83117.0,0.3939607]
[1743342456595,0.01899468,83118.0,83117.0,0.3939607]
[1743342456772,0.00014032,83118.0,83117.0,0.3939607]
[1743342456970,0.00014032,83118.0,83117.0,0.43455987]
[1743342457177,0.00014032,83118.0,83117.0,0.3939607]
[1743342457743,0.25279232,83118.0,83117.0,0.3939607]
[1743342459268,0.00014032,83118.0,83117.0,0.3939607]
[1743342459830,0.01899509,83118.0,83117.0,0.3939607]
[1743342460572,0.01899509,83118.0,83117.0,0.54081738]
[1743342460690,0.01899509,83118.0,83117.0,0.64783702]
[1743342462892,0.03102609,83118.0,83117.0,0.3850178]
[1743342463131,0.03403398,83118.0,83117.0,0.3850178]
[1743342463346,0.10993418,83118.0,83117.0,0.008]
[1743342463586,0.10692609,83118.0,83117.0,0.008]
[1743342464163,0.10692609,83118.0,83095.0,0.0003372]
[1743342464164,0.328619,83096.0,83095.0,0.0003372]
[1743342464362,0.493139,83096.0,83095.0,0.0003372]
[1743342464932,0.417239,83096.0,83095.0,0.0003372]
[1743342465209,0.43610006,83096.0,83095.0,0.0003372]
[1743342466974,0.43610006,83096.0,83095.0,0.0043372]
[1743342467359,0.43610006,83096.0,83095.0,0.0073372]
[1743342467562,0.417239,83096.0,83095.0,0.0073372]
[1743342469939,0.43610027,83096.0,83095.0,0.0073372]
[1743342472782,0.43610027,83096.0,83095.0,0.0043372]
[1743342473293,0.43610027,83096.0,83095.0,0.0063372]
[1743342473467,0.43610027,83096.0,83094.0,0.00047182]
[1743342473468,0.387934,83095.0,83094.0,2e-08]
[1743342473648,1.77877675,83095.0,83094.0,2e-08]
[1743342473852,0.49576775,83095.0,83094.0,2e-08]
[1743342474047,0.53196675,83095.0,83094.0,2e-08]
[1743342474456,0.552764,83081.0,83080.0,0.0003374]
[1743342474655,0.629564,83081.0,83080.0,0.0003374]
[1743342475086,0.64843034,83081.0,83080.0,0.0003374]
[1743342475734,0.73975247,83081.0,83080.0,0.0003374]
[1743342476127,0.75162759,83081.0,83080.0,0.0003374]
[1743342476495,0.64143912,83081.0,83080.0,0.0003374]
[1743342476696,0.64343912,83081.0,83080.0,0.0003374]
[1743342477107,0.631564,83081.0,83080.0,0.0003374]
[1743342478420,0.796004,83081.0,83080.0,0.0003374]
[1743342480316,0.8148714,83081.0,83080.0,0.0003374]
[1743342480692,0.6504314,83081.0,83080.0,0.0003374]
[1743342480898,0.7380714,83081.0,83080.0,0.0003374]
[1743342481266,0.83956162,83081.0,83080.0,0.0003374]
[1743342482823,0.7380714,83081.0,83080.0,0.0003374]
[1743342484246,0.7380714,83081.0,83080.0,4e-07]
[1743342484460,1.89365035,83081.0,83080.0,4e-07]
[1743342484660,0.89680535,83081.0,83080.0,4e-07]
[1743342485447,0.89480535,83081.0,83080.0,4e-07]
[1743342485646,0.92180515,83081.0,83080.0,4e-07]
[1743342486250,0.8639314,83081.0,83080.0,4e-07]
[1743342486441,0.846064,83081.0,83080.0,4e-07]
[1743342486566,0.8730638,83081.0,83080.0,4e-07]
[1743342487202,0.848064,83081.0,83080.0,4e-07]
[1743342487830,0.845064,83081.0,83080.0,4e-07]
[1743342488003,0.8740638,83081.0,83080.0,4e-07]
[1743342488211,0.849064,83081.0,83080.0,4e-07]
[1743342489390,0.684664,83081.0,83080.0,4e-07]
[1743342489619,0.723124,83081.0,83080.0,4e-07]
[1743342489974,0.83073948,83081.0,83080.0,4e-07]
[1743342490676,0.84960737,83081.0,83080.0,4e-07]
[1743342491195,0.74199189,83081.0,83080.0,4e-07]
[1743342495243,0.723124,83081.0,83080.0,4e-07]
[1743342497347,0.558764,83081.0,83080.0,4e-07]
[1743342497559,0.723044,83081.0,83080.0,4e-07]
[1743342498148,0.721044,83081.0,83080.0,4e-07]
[1743342498377,0.717044,83081.0,83080.0,4e-07]
[1743342498562,0.719044,83081.0,83080.0,4e-07]
[1743342498776,0.255764,83081.0,83080.0,4e-07]
[1743342498984,0.4202126,83081.0,83080.0,4e-07]
[1743342501407,0.2559326,83081.0,83080.0,4e-07]
[1743342502297,0.2539326,83081.0,83080.0,4e-07]
[1743342503263,0.2549326,83081.0,83080.0,4e-07]
[1743342504517,0.2529326,83081.0,83080.0,4e-07]
[1743342505365,0.27179869,83081.0,83080.0,4e-07]
[1743342505661,0.27279869,83081.0,83080.0,4e-07]
[1743342506592,0.34298166,83081.0,83080.0,4e-07]
[1743342506804,0.64298166,83081.0,83080.0,4e-07]
[1743342507008,0.64798166,83081.0,83080.0,4e-07]
[1743342507160,0.76658808,83081.0,83080.0,4e-07]
[1743342507561,0.73375413,83081.0,83080.0,4e-07]
[1743342507969,0.73275413,83081.0,83080.0,4e-07]
[1743342508163,0.73875413,83081.0,83080.0,4e-07]
[1743342508810,0.73675413,83081.0,83080.0,4e-07]
[1743342509013,0.74275413,83081.0,83080.0,4e-07]
[1743342509841,0.76162295,83081.0,83080.0,4e-07]
[1743342512254,0.74592142,83081.0,83080.0,4e-07]
[1743342513839,0.76952334,83081.0,83080.0,4e-07]
[1743342514482,0.77452334,83081.0,83080.0,4e-07]
[1743342514653,0.85522334,83081.0,83080.0,4e-07]
[1743342516069,1.42078118,83081.0,83080.0,4e-07]
[1743342516290,0.552841,83056.0,83038.0,0.0791]
[1743342516576,0.716921,83056.0,83038.0,0.0791]
[1743342517643,0.716921,83056.0,83055.0,0.00047889]
[1743342517842,0.822967,83056.0,83055.0,0.00047889]
[1743342518271,0.719921,83056.0,83055.0,0.00047889]
[1743342518787,0.833237,83056.0,83055.0,0.00047889]
[1743342519201,0.833237,83056.0,83055.0,8.9e-07]
[1743342519202,0.7336328,83056.0,83055.0,8.9e-07]
[1743342519406,0.79646655,83056.0,83055.0,8.9e-07]
[1743342519608,0.81534039,83056.0,83055.0,8.9e-07]
[1743342519967,0.81534039,83056.0,83021.0,0.0465]
[1743342519968,0.005,83046.0,83029.0,2.9e-07]
[1743342520169,0.252919,83030.0,83029.0,2.9e-07]
[1743342520377,0.4522752,83030.0,83029.0,2.9e-07]
[1743342520676,0.7522752,83030.0,83029.0,2.9e-07]
[1743342521108,0.7522752,83030.0,83017.0,0.0003366]
[1743342521109,0.012045,83018.0,83017.0,6.9e-07]
[1743342522482,0.03092402,83018.0,83017.0,0.00100069]
[1743342522681,0.03092402,83018.0,83017.0,6.9e-07]
[1743342523802,0.19496402,83018.0,83017.0,6.9e-07]
[1743342524949,0.19596402,83018.0,83017.0,6.9e-07]
[1743342525948,0.28419931,83018.0,83017.0,6.9e-07]
[1743342526226,0.28118739,83018.0,83017.0,6.9e-07]
[1743342526630,0.26230837,83018.0,83017.0,6.9e-07]
[1743342528888,0.56230837,83018.0,83017.0,6.9e-07]
[1743342529095,0.56230837,83018.0,82996.0,0.0454372]
[1743342529096,0.012046,83009.0,83005.0,9e-08]
[1743342529305,0.012048,82997.0,82996.0,2.9e-07]
[1743342529514,0.72503297,82997.0,82996.0,2.9e-07]
[1743342529743,0.72503297,82997.0,82943.0,0.241129]
[1743342529744,0.253097,82972.0,82961.0,0.0451]
[1743342530112,0.253097,82972.0,82951.0,0.3770178]
[1743342530113,0.417097,82972.0,82955.0,0.0807]
[1743342530862,0.43598548,82972.0,82971.0,0.00480919]
[1743342531716,0.43598548,82972.0,82971.0,0.00580919]
[1743342534479,0.52120885,82972.0,82971.0,0.00580919]
[1743342535400,0.43598548,82972.0,82971.0,0.00580919]
[1743342535810,0.01888848,82972.0,82971.0,0.00580919]
[1743342536013,0.01888848,82972.0,82971.0,0.08650919]
[1743342536203,0.012052,82972.0,82971.0,0.08650919]
[1743342536766,0.01205,82984.0,82977.0,0.24103]
[1743342536970,0.01205,82982.0,82978.0,0.12028483]
[1743342537335,0.01205,82982.0,82978.0,0.12945646]
[1743342537507,0.253069,82981.0,82978.0,0.12945646]
[1743342537670,0.253075,82979.0,82978.0,0.12945646]
[1743342538631,0.253075,82979.0,82978.0,0.13045646]
[1743342538792,0.253075,82979.0,82978.0,0.12945646]
[1743342538993,0.240995,82990.0,82985.0,0.01205]
[1743342539210,0.012049,82992.0,82986.0,0.01205]
[1743342539211,0.416998,82992.0,82986.0,0.01205]
[1743342539427,0.25303,82994.0,82989.0,0.0476]
[1743342539631,0.240992,82990.0,82989.0,0.0476]
[1743342539831,0.253041,82990.0,82989.0,0.0476]
[1743342540659,0.255041,82990.0,82989.0,0.0476]
[1743342540851,0.27392417,82990.0,82989.0,0.0476]
[1743342541058,0.27192417,82990.0,82989.0,0.0476]
[1743342541584,0.27192417,82990.0,82977.0,0.3770178]
[1743342541585,0.253078,82978.0,82977.0,0.3770178]
[1743342542117,0.253078,82978.0,82965.0,0.0476]
[1743342542118,0.253097,82972.0,82965.0,0.0476]
[1743342542412,0.253097,82972.0,82959.0,0.3770178]
[1743342544122,0.253097,82972.0,82959.0,0.6180978]
[1743342544340,0.417017,82972.0,82971.0,0.00680919]
[1743342550636,0.417017,82972.0,82971.0,0.00480919]
[1743342550838,0.417017,82972.0,82971.0,0.00580919]
[1743342551063,0.4359047,82972.0,82971.0,0.00580919]
[1743342551208,0.2719847,82972.0,82971.0,0.00580919]
[1743342551403,0.4358647,82972.0,82971.0,0.00580919]
[1743342554170,0.4358247,82972.0,82971.0,0.00580919]
[1743342555169,0.55412717,82972.0,82971.0,0.00580919]
[1743342555404,0.4358247,82972.0,82971.0,0.00580919]
[1743342556409,0.416937,82972.0,82971.0,0.00580919]
[1743342559407,0.716937,82972.0,82971.0,0.00580919]
[1743342559559,0.73582626,82972.0,82971.0,0.00580919]
[1743342559950,0.7582641,82972.0,82971.0,0.00580919]
[1743342561160,0.73582626,82972.0,82971.0,0.00580919]
[1743342563273,0.73582626,82972.0,82971.0,0.00480919]
[1743342563452,0.73682626,82972.0,82971.0,0.00480919]
[1743342566315,0.57298626,82972.0,82971.0,0.00480919]
[1743342566518,0.554097,82972.0,82971.0,0.00480919]
[1743342566810,0.717817,82972.0,82971.0,0.00480919]
[1743342569326,0.73670642,82972.0,82971.0,0.00480919]
[1743342572774,0.73666642,82972.0,82971.0,0.00480919]
[1743342572957,0.57298642,82972.0,82971.0,0.00480919]
[1743342573303,0.73666642,82972.0,82971.0,0.00480919]
[1743342574656,0.57298642,82972.0,82971.0,0.00480919]
[1743342574862,0.43662642,82972.0,82971.0,0.00480919]
[1743342575066,0.27298642,82972.0,82971.0,0.13420919]
[1743342575271,0.26093442,82972.0,82971.0,0.13420919]
[1743342575468,0.27298642,82972.0,82971.0,0.13420919]
[1743342575847,0.01988942,82972.0,82971.0,0.13420919]
[1743342576037,0.001,82972.0,82971.0,0.65810467]
[1743342576198,0.001,82972.0,82971.0,0.69924709]
[1743342576406,0.01205,82987.0,82980.0,0.012051]
[1743342576654,0.01205,82987.0,82981.0,0.0795]
[1743342576855,0.16364,82989.0,82983.0,0.01205]
[1743342577029,0.175689,82989.0,82983.0,0.01205]
[1743342577297,0.240998,82988.0,82983.0,0.01205]
[1743342577499,0.253039,82991.0,82986.0,0.01205]
[1743342577671,0.001,82987.0,82986.0,0.15599085]
[1743342577867,0.001,82987.0,82986.0,0.27627568]
[1743342578075,0.0003376,82996.0,82994.0,0.012049]
[1743342578476,0.0003376,82996.0,82994.0,0.011049]
[1743342578676,0.0003376,82996.0,82991.0,0.253036]
[1743342578976,0.01921919,82996.0,82991.0,0.253036]
[1743342579842,0.012048,82995.0,82989.0,0.012049]
[1743342580049,0.012048,82995.0,82990.0,0.37332583]
[1743342580224,0.012048,82995.0,82994.0,0.002]
[1743342580420,0.012048,82995.0,82990.0,0.37332583]
[1743342580818,0.012048,82995.0,82991.0,0.002]
[1743342581023,0.01921919,82996.0,82992.0,0.240987]
[1743342581456,0.01921919,82996.0,82991.0,0.002]
[1743342581457,0.26019419,82996.0,82991.0,0.002]
[1743342581625,0.26019419,82996.0,82992.0,0.00911964]
[1743342581826,0.01921919,82996.0,82992.0,0.253036]
[1743342582266,0.27224419,82996.0,82990.0,0.37332583]
[1743342582405,0.012048,82995.0,82994.0,0.002]
[1743342582611,0.25303,82994.0,82988.0,0.012049]
[1743342582814,0.012049,82994.0,82989.0,0.253044]
[1743342583179,0.03126719,82996.0,82992.0,0.002]
[1743342583327,0.01921919,82996.0,82991.0,0.253038]
[1743342583514,0.01921919,82996.0,82991.0,0.26208154]
[1743342583714,0.01921919,82996.0,82994.0,0.002]
[1743342583914,0.01921919,82996.0,82991.0,0.26208154]
[1743342584918,0.27224319,82996.0,82991.0,0.02109254]
[1743342585116,0.240982,82994.0,82991.0,0.00904354]
[1743342585564,0.240982,82994.0,82992.0,0.002]
[1743342585769,0.240982,82994.0,82989.0,0.012049]
[1743342585918,0.240987,82992.0,82986.0,0.370402]
[1743342586131,0.012048,82995.0,82989.0,0.253041]
[1743342586330,0.253026,82995.0,82989.0,0.253041]
[1743342586542,0.0003376,82996.0,82991.0,0.255038]
[1743342586895,0.0003376,82996.0,82991.0,0.253038]
[1743342587655,0.0003376,82996.0,82993.0,0.240983]
[1743342587828,0.0003376,82996.0,82995.0,0.253026]
[1743342588009,0.0003376,82996.0,82993.0,0.253032]
[1743342588218,0.0003376,82996.0,82994.0,0.253027]
[1743342588434,0.0003376,82996.0,82995.0,0.012048]
[1743342589389,0.01921897,82996.0,82995.0,0.012048]
[1743342590191,0.01921897,82996.0,82995.0,0.35330615]
[1743342590408,0.01921897,82996.0,82995.0,0.29822669]
[1743342592017,0.02021897,82996.0,82995.0,0.27163784]
[1743342592144,0.02021897,82996.0,82995.0,0.26963784]
[1743342592350,0.02121897,82996.0,82995.0,0.28568584]
[1743342593182,0.02021897,82996.0,82995.0,0.28168584]
[1743342593519,0.02121897,82996.0,82995.0,0.52766384]
[1743342593724,0.02021897,82996.0,82995.0,0.52766384]
[1743342594135,0.02121897,82996.0,82995.0,0.52866384]
[1743342594766,0.02121897,82996.0,82995.0,0.64894867]
[1743342595263,0.02121897,82996.0,82995.0,0.66348952]
[1743342595512,0.02121897,82996.0,82995.0,0.54320469]
[1743342596507,0.0023376,82996.0,82995.0,0.54320469]
[1743342599503,0.02121696,82996.0,82995.0,0.54320469]
[1743342600529,0.02121696,82996.0,82995.0,0.92022249]
[1743342600679,0.02121696,82996.0,82995.0,1.04050732]
[1743342601104,0.02121696,82996.0,82995.0,0.92022249]
[1743342601304,0.01621696,82996.0,82995.0,0.92022249]
[1743342601685,0.01621696,82996.0,82995.0,0.66719649]
[1743342601888,0.01621696,82996.0,82995.0,0.92022249]
[1743342603193,0.01621696,82996.0,82995.0,0.90568164]
[1743342603844,0.01621696,82996.0,82995.0,0.96642995]
[1743342604405,0.01621696,82996.0,82995.0,0.90568164]
[1743342606476,0.252993,83006.0,83001.0,0.24096]
[1743342607103,0.012047,83007.0,83003.0,0.240955]
[1743342607254,0.012047,83007.0,83001.0,0.253008]
[1743342607717,0.012047,83007.0,83001.0,0.25347999]
[1743342608216,0.012047,83007.0,83001.0,0.25647999]
[1743342608396,0.253003,83003.0,83001.0,0.00047199]
[1743342608599,0.012047,83002.0,83001.0,0.00047199]
[1743342608805,0.05038229,83002.0,83001.0,0.00347199]
[1743342609006,0.0150595,83002.0,83001.0,0.00347199]
[1743342609340,0.012047,83002.0,83001.0,0.00347199]
[1743342609541,0.012047,83002.0,83001.0,0.00047199]
[1743342609887,0.012047,83002.0,83001.0,0.00447199]
[1743342610814,0.11037146,83002.0,83001.0,0.00447199]
[1743342611228,0.0150592,83002.0,83001.0,0.00047199]
[1743342611542,0.012047,83002.0,83001.0,0.00347199]
[1743342612662,0.03092987,83002.0,83001.0,0.00347199]
[1743342612841,0.11314248,83002.0,83001.0,0.00347199]
[1743342613191,0.46044248,83002.0,83001.0,9.9e-07]
[1743342613364,0.553036,82992.0,82991.0,6e-07]
[1743342613561,0.553036,82992.0,82991.0,0.00014214]
[1743342613562,0.632236,82992.0,82991.0,0.00014214]
[1743342614148,0.65112271,82992.0,82991.0,0.00014214]
[1743342615515,0.89093471,82992.0,82991.0,0.00014214]
[1743342616032,0.89093471,82992.0,82991.0,1.4e-07]
[1743342616234,0.65112271,82992.0,82991.0,1.4e-07]
[1743342616452,0.632236,82992.0,82991.0,1.4e-07]
[1743342617660,0.637236,82992.0,82991.0,1.4e-07]
[1743342618439,0.639236,82992.0,82991.0,1.4e-07]
[1743342619249,0.639236,82992.0,82991.0,0.00016894]
[1743342619444,1.20548759,82992.0,82991.0,0.00016894]
[1743342619647,1.08520276,82992.0,82991.0,0.00016894]
[1743342619845,0.88166676,82992.0,82991.0,0.00016894]
[1743342620785,0.87666676,82992.0,82991.0,0.00016894]
[1743342621014,1.03978676,82992.0,82991.0,0.00016894]
[1743342622358,1.07602576,82992.0,82991.0,0.00016894]
[1743342622790,1.07602576,82992.0,82991.0,9.4e-07]
[1743342622995,0.85782076,82992.0,82991.0,9.4e-07]
[1743342624381,0.61050076,82992.0,82991.0,9.4e-07]
[1743342624639,0.73738176,82992.0,82991.0,9.4e-07]
[1743342626620,0.7184936,82992.0,82991.0,9.4e-07]
[1743342629481,0.4184136,82992.0,82991.0,9.4e-07]
[1743342629708,0.4372987,82992.0,82991.0,9.4e-07]
[1743342629916,0.0212227,82992.0,82991.0,9.4e-07]
[1743342630097,0.0212227,82992.0,82991.0,0.13120094]
[1743342630356,0.0332717,82992.0,82991.0,0.13120094]
[1743342630740,0.0322717,82992.0,82991.0,0.13120094]
[1743342631311,0.0312717,82992.0,82991.0,0.13120094]
[1743342632300,0.08801741,82992.0,82991.0,9.4e-07]
[1743342632641,0.08801744,82992.0,82991.0,0.00100094]
[1743342632845,0.4816407,82992.0,82991.0,9.4e-07]
[1743342633079,1.68050032,82992.0,82991.0,9.4e-07]
[1743342633195,0.54323761,82992.0,82991.0,9.4e-07]
[1743342633840,0.54323761,82992.0,82971.0,0.0043372]
[1743342634082,0.253097,82972.0,82971.0,0.00442824]
[1743342634412,0.416097,82972.0,82971.0,0.00442824]
[1743342634747,0.43498604,82972.0,82971.0,0.00442824]
[1743342636127,0.27198604,82972.0,82971.0,0.00442824]
[1743342636346,0.43498604,82972.0,82971.0,0.00442824]
[1743342636500,0.416097,82972.0,82971.0,0.00442824]
[1743342639232,0.46983017,82972.0,82971.0,0.00442824]
[1743342639755,0.416097,82972.0,82971.0,0.00442824]
[1743342644277,0.428097,82972.0,82971.0,0.00442824]
[1743342646794,0.45052281,82972.0,82971.0,0.00442824]
[1743342647819,0.428097,82972.0,82971.0,0.00442824]
[1743342648987,0.44698651,82972.0,82971.0,0.00442824]
[1743342649190,0.54817856,82972.0,82971.0,0.00442824]
[1743342649391,0.44698651,82972.0,82971.0,0.00442824]
[1743342653512,0.28398651,82972.0,82971.0,0.00442824]
[1743342653711,0.44682651,82972.0,82971.0,0.00442824]
[1743342654132,0.28398651,82972.0,82971.0,0.00442824]
[1743342654356,0.44682651,82972.0,82971.0,0.00442824]
[1743342654561,0.28398651,82972.0,82971.0,0.00442824]
[1743342656400,0.265097,82972.0,82971.0,0.00442824]
[1743342657940,0.3585086,82972.0,82971.0,0.00442824]
[1743342658167,0.265097,82972.0,82971.0,0.00442824]
[1743342660126,0.28398568,82972.0,82971.0,0.00442824]
[1743342663291,0.28498568,82972.0,82971.0,0.00442824]
[1743342664364,0.28598568,82972.0,82971.0,0.00442824]
[1743342665028,0.44870568,82972.0,82971.0,0.00442824]
[1743342665622,0.44770568,82972.0,82971.0,0.00442824]
[1743342665830,0.44870568,82972.0,82971.0,0.00442824]